fUSD/lending_fUSD_20251220
["ID","MTS","AMOUNT","RATE_DAILY","PERIOD"]
[399246845,1766202639036,-1000000.0,0.00015082,2]
[399246847,1766202639046,-301820.74602814,0.00015092,2]
[399246849,1766202639055,-250.0,0.00015101,2]
[399246851,1766202639064,-500.0,0.00015178,2]
[399246853,1766202639073,-2421.02,0.00015182,2]
[399246855,1766202639083,-2424.23741887,0.00015238,2]
[399246857,1766202639092,-158.48329942,0.00015288,2]
[399246859,1766202639100,-160.33063992,0.00015288,2]
[399246861,1766202639109,-155.64705311,0.00015288,2]
[399246863,1766202639118,-150.0,0.00015288,2]
[399246865,1766202639127,-157.75435091,0.00015288,2]
[399246867,1766202639136,-156.76422926,0.00015288,2]
[399246870,1766202639147,-151.72084113,0.00015288,2]
[399246872,1766202639156,-152.11986511,0.00015288,2]
[399246874,1766202639166,-151.68546767,0.00015288,2]
[399246876,1766202639175,-152.70737667,0.00015288,2]
[399246878,1766202639184,-150.82546103,0.00015288,2]
[399246880,1766202639192,-152.94375339,0.00015288,2]
[399246882,1766202639202,-155.96693599,0.00015288,2]
[399246884,1766202639211,-2877.05327433,0.0001532,2]
[399246886,1766202639221,-915.57,0.00015342,2]
[399246888,1766202639230,-1513.62715277,0.00015364,2]
[399246890,1766202639239,-1393.70965969,0.00015416,2]
[399246891,1766202639249,-2424.23741887,0.00015515,2]
[399246894,1766202639259,-617.40005154,0.00015603,2]
[399246895,1766202639268,-915.57,0.00015616,2]
[399246897,1766202639277,-150.0,0.00015627,2]
[399246899,1766202639287,-1513.62715277,0.00015748,2]
[399246901,1766202639296,-2424.23741887,0.00015792,2]
[399246903,1766202639305,-153.69901864,0.00015876,2]
[399246905,1766202639315,-311.1,0.00015876,2]
[399246907,1766202639324,-493.5582567,0.000159,2]
[399246909,1766202639333,-493.55825668,0.000159,2]
[399246911,1766202639342,-493.55825668,0.000159,2]
[399246914,1766202639351,-493.55825668,0.000159,2]
[399246915,1766202639360,-493.55825668,0.000159,2]
[399246918,1766202639369,-493.55825668,0.000159,2]
[399246919,1766202639378,-374.3237368,0.0001595,2]
[399246921,1766202639387,-150.0,0.00015967,2]
[399246924,1766202639397,-2424.23741887,0.00016069,2]
[399246926,1766202639406,-1513.62715277,0.00016132,2]
[399246928,1766202639415,-500.0,0.00016137,2]
[399246930,1766202639424,-640.24385345,0.00016151,2]
[399246932,1766202639434,-915.57,0.00016164,2]
[399246934,1766202639442,-5425.777,0.00016165,2]
[399246936,1766202639451,-316.672,0.00016165,2]
[399246938,1766202639460,-500.37407939,0.000163,2]
[399246940,1766202639470,-500.0,0.000163,2]
[399246942,1766202639479,-333.44713486,0.000163,2]
[399246944,1766202639488,-500.0,0.000163,2]
[399246946,1766202639497,-500.0,0.000163,2]
[399246948,1766202639506,-500.44010865,0.000163,2]
[399246950,1766202639515,-500.0,0.000163,2]
[399246952,1766202639524,-500.0,0.000163,2]
[399246954,1766202639533,-543.08632529,0.000163,2]
[399246956,1766202639542,-500.0,0.000163,2]
[399246958,1766202639551,-500.0,0.000163,2]
[399246960,1766202639559,-500.0,0.000163,2]
[399246962,1766202639569,-505.70382566,0.000163,2]
[399246964,1766202639578,-577.20648211,0.000163,2]
[399246966,1766202639587,-344.64845159,0.000163,2]
[399246968,1766202639596,-500.0,0.000163,2]
[399246970,1766202639604,-501.62933113,0.000163,2]
[399246972,1766202639614,-500.0,0.000163,2]
[399246974,1766202639623,-500.30832876,0.000163,2]
[399246976,1766202639632,-431.98858729,0.000163,2]
[399246978,1766202639641,-503.82812293,0.000163,2]
[399246980,1766202639650,-150.0,0.00016307,2]
[399247007,1766202639873,-2424.23741887,0.00016346,2]
[399247009,1766202639882,-1000.0,0.000164,2]
[399247011,1766202639892,-426.0,0.00016407,2]
[399247013,1766202639902,-500.0,0.00016438,2]
[399247015,1766202639911,-500.0,0.00016438,2]
[399247017,1766202639921,-500.0,0.00016438,2]
[399247019,1766202639930,-500.0,0.00016438,2]
[399247021,1766202639940,-500.0,0.00016438,2]
[399247023,1766202639949,-500.0,0.00016438,2]
[399247025,1766202639959,-500.0,0.00016438,2]
[399247027,1766202639968,-500.0,0.00016438,2]
[399247029,1766202639976,-915.57,0.00016438,2]
[399247031,1766202639986,-500.0,0.00016438,2]
[399247033,1766202639995,-500.0,0.00016438,2]
[399247035,1766202640004,-317.72504093,0.00016438,2]
[399247037,1766202640013,-500.0,0.00016438,2]
[399247039,1766202640022,-500.0,0.00016438,2]
[399247041,1766202640032,-500.0,0.00016438,2]
[399247043,1766202640041,-500.0,0.00016438,2]
[399247045,1766202640050,-500.0,0.00016438,2]
[399247047,1766202640059,-500.0,0.00016438,2]
[399247049,1766202640070,-500.0,0.00016438,2]
[399247051,1766202640079,-500.0,0.00016438,2]
[399247054,1766202640087,-500.0,0.00016438,2]
[399247056,1766202640096,-426.0,0.00016445,2]
[399247058,1766202640105,-426.0,0.00016483,2]
[399247060,1766202640115,-500.0,0.00016495,2]
[399247062,1766202640124,-426.0,0.00016496,2]
[399247064,1766202640134,-1513.62715277,0.00016516,2]
[399247066,1766202640144,-2424.23741887,0.00016623,2]
[399247067,1766202640153,-150.0,0.00016647,2]
[399247068,1766202640161,-426.0,0.00016659,2]
[399247069,1766202640170,-8430.61720667,0.0001666,2]
[399247070,1766202640180,-426.0,0.00016665,2]
[399247071,1766202640188,-426.0,0.00016665,2]
[399247072,1766202640197,-663.93287602,0.00016699,2]
[399247073,1766202640206,-1000.0,0.000167,2]
[399247074,1766202640215,-426.0,0.00016703,2]
[399247076,1766202640224,-915.68985306,0.00016712,2]
[399247078,1766202640233,-500.0,0.00016713,2]
[399247080,1766202640242,-500.0,0.00016713,2]
[399247082,1766202640257,-500.0,0.00016713,2]
[399247084,1766202640266,-150.0,0.00016713,2]
[399247086,1766202640276,-500.0,0.00016713,2]
[399247088,1766202640286,-500.0,0.00016713,2]
[399247090,1766202640295,-764.0,0.00016713,2]
[399247092,1766202640304,-500.0,0.00016713,2]
[399247094,1766202640313,-150.0,0.00016713,2]
[399247096,1766202640323,-450.0,0.00016713,2]
[399247098,1766202640332,-150.0,0.00016713,2]
[399247100,1766202640341,-453.0,0.00016713,2]
[399247102,1766202640350,-1058.0,0.00016713,2]
[399247104,1766202640359,-500.0,0.00016713,2]
[399247106,1766202640368,-500.0,0.00016713,2]
[399247108,1766202640378,-426.0,0.00016719,2]
[399247110,1766202640387,-426.0,0.0001672,2]
[399247112,1766202640396,-215.0738,0.00016776,2]
[399247114,1766202640406,-426.0,0.0001682,2]
[399247116,1766202640415,-223.91595667,0.00016831,2]
[399247118,1766202640423,-573.99846652,0.00016848,2]
[399247120,1766202640433,-504.52224005,0.00016848,2]
[399247122,1766202640443,-1001.94292641,0.00016848,2]
[399247124,1766202640451,-375.67366834,0.00016848,2]
[399247126,1766202640460,-1000.91698308,0.00016848,2]
[399247128,1766202640470,-1006.41487356,0.00016848,2]
[399247130,1766202640479,-370.8904943,0.00016848,2]
[399247132,1766202640488,-501.11789279,0.00016848,2]
[399247134,1766202640497,-1000.0,0.00016848,2]
[399247136,1766202640506,-1000.96314567,0.00016848,2]
[399247138,1766202640515,-500.0,0.0001685,2]
[399247140,1766202640524,-500.0,0.0001685,2]
[399247142,1766202640533,-500.0,0.0001685,2]
[399247144,1766202640543,-150.0,0.0001685,2]
[399247146,1766202640552,-500.0,0.0001685,2]
[399247148,1766202640561,-500.0,0.0001685,2]
[399247150,1766202640570,-764.0,0.0001685,2]
[399247152,1766202640579,-500.0,0.0001685,2]
[399247154,1766202640588,-450.0,0.0001685,2]
[399247156,1766202640597,-150.0,0.0001685,2]
[399247158,1766202640606,-453.0,0.0001685,2]
[399247160,1766202640615,-1058.0,0.0001685,2]
[399247162,1766202640624,-500.0,0.0001685,2]
[399247164,1766202640633,-200.0,0.00016863,2]
[399247166,1766202640643,-200.0,0.00016864,2]
[399247167,1766202640652,-200.0,0.00016864,2]
[399247169,1766202640662,-1034.0,0.00016865,2]
[399247171,1766202640671,-1000.0,0.000169,2]
[399247174,1766202640681,-33491.4068,0.000169,2]
[399247176,1766202640690,-10000.0,0.000169,2]
[399247178,1766202640699,-2424.23741887,0.000169,2]
[399247180,1766202640708,-1513.62715277,0.000169,2]
[399247181,1766202640717,-374.3237368,0.000169,2]
[399247184,1766202640727,-9927.0,0.000169,2]
[399247186,1766202640736,-246.0,0.00016904,2]
[399247188,1766202640746,-426.0,0.00016937,2]
[399247190,1766202640755,-7908.0,0.00016947,2]
[399247192,1766202640764,-1034.0,0.00016968,2]
[399247194,1766202640773,-500.0,0.00016973,2]
[399247196,1766202640782,-150.0,0.00016973,2]
[399247198,1766202640791,-164.76564826,0.00016986,2]
[399247199,1766202640801,-426.0,0.00016987,2]
[399247201,1766202640810,-351.31035432,0.00016987,2]
[399247204,1766202640819,-500.0,0.00016987,2]
[399247205,1766202640829,-500.0,0.00016987,2]
[399247208,1766202640839,-227.94355761,0.00016987,2]
[399247209,1766202640848,-500.0,0.00016987,2]
[399247212,1766202640857,-500.0,0.00016987,2]
[399247214,1766202640866,-764.0,0.00016987,2]
[399247216,1766202640875,-500.0,0.00016987,2]
[399247218,1766202640885,-450.0,0.00016987,2]
[399247220,1766202640894,-150.8923853,0.00016987,2]
[399247222,1766202640903,-453.0,0.00016987,2]
[399247223,1766202640912,-1058.0,0.00016987,2]
[399247226,1766202640922,-500.0,0.00016987,2]
[399247227,1766202640931,-500.0,0.00016989,2]
[399247229,1766202640940,-151.0,0.00016997,2]
[399247231,1766202640949,-5092.7218287,0.00016998,2]
[399247233,1766202640958,-27591.04624507,0.00016999,2]
[399247235,1766202640967,-469.51043734,0.00016999,2]
[399247237,1766202640976,-398.53152918,0.00016999,2]
[399247239,1766202640985,-308.45911544,0.00016999,2]
[399247241,1766202640995,-592.36853989,0.00016999,2]
[399247243,1766202641004,-337.46293072,0.00016999,2]
[399247245,1766202641013,-956271.66247142,0.00017,2]
[399247262,1766202641163,-152.0,0.00013773,2]
[399247264,1766202641173,-164.49701509,0.0001685,2]
[399247267,1766202641184,-335.50298491,0.0001685,2]
[399247268,1766202641194,-395.20598099,0.00016987,2]
[399247271,1766202641203,-7744048.42070152,0.00017,2]
[399247274,1766202641223,-64997.49769457,0.00017,2]
[399247455,1766202646202,-8045.91782727,0.00017,2]
[399247456,1766202646221,-24341.76972665,0.00017,2]
[399247457,1766202646266,-968.97304185,0.00017,2]
[399247458,1766202646696,-310.546,0.00017,2]
[399247459,1766202646712,-581.45672485,0.00017,2]
[399247460,1766202646723,-1963.0,0.00017,2]
[399247461,1766202700133,1111.18217587,0.00011298,2]
[399247477,1766202742815,167.62290986,0.00022,30]
[399247492,1766202980713,224.61,0.00011272,2]
[399247544,1766203501989,325.0176397,0.00023,120]
[399247546,1766203699677,150.0,0.00011707,2]
[399247607,1766203832272,-7657.77352828,0.00011825,2]
[399247608,1766203832284,-260.03248731,0.00011825,2]
[399247609,1766203832296,-518.0,0.00011825,2]
[399247610,1766203832307,-322.59321388,0.00011825,2]
[399247611,1766203832318,-1618.14212,0.00011825,2]
[399247612,1766203832329,-1713.16272951,0.00011825,2]
[399247613,1766203832344,-1190.51079332,0.00011825,2]
[399247614,1766203832356,-11367.31893508,0.00011825,2]
[399247615,1766203832376,-1767.34463958,0.00011825,2]
[399247616,1766203832387,-9108.43118675,0.00011825,2]
[399247617,1766203832398,-391.44806615,0.00011825,2]
[399247618,1766203832430,-731.01688365,0.00011825,2]
[399247619,1766203832443,-906.23829965,0.00011825,2]
[399247628,1766203838307,-352.13244151,0.00011824,2]
[399247629,1766203838319,-29909.85711684,0.00011825,2]
[399247630,1766203838329,-247.0,0.00011825,2]
[399247631,1766203838338,-1600.0,0.00011955,2]
[399247632,1766203838347,-195.0,0.00011962,2]
[399247633,1766203838356,-195.0,0.00011969,2]
[399247634,1766203838365,-250.0,0.00011982,2]
[399247635,1766203838374,-3407.53,0.00012009,2]
[399247636,1766203838383,-2653.59,0.00012066,2]
[399247637,1766203838395,-195.0,0.00012082,2]
[399247638,1766203838404,-515.29578466,0.00012295,2]
[399247639,1766203838413,-188.54436046,0.00012295,2]
[399247640,1766203838422,-34045.73346557,0.00012296,2]
[399247641,1766203838431,-150.0,0.00012349,2]
[399247642,1766203838441,-81414.61613669,0.0001235,2]
[399247643,1766203838452,-7739.17273007,0.0001235,2]
[399247644,1766203838463,-3662.85766058,0.0001235,2]
[399247645,1766203838473,-32633.9999999,0.0001235,2]
[399247646,1766203838488,-874549.35347276,0.0001235,2]
[399247647,1766203838497,-190.32381134,0.00012399,2]
[399247648,1766203838506,-224.61,0.00012399,2]
[399247649,1766203838515,-500.0,0.00012399,2]
[399247650,1766203838524,-500.0,0.00012399,2]
[399247651,1766203838534,-500.0,0.00012399,2]
[399247652,1766203838544,-500.0,0.00012399,2]
[399247653,1766203838554,-500.0,0.00012399,2]
[399247654,1766203838563,-500.0,0.00012399,2]
[399247655,1766203838573,-201.77626679,0.00012399,2]
[399247657,1766203838582,-1647.70919262,0.0001244,2]
[399247659,1766203838594,-6990.095,0.0001245,2]
[399247661,1766203838604,-421.022,0.0001245,2]
[399247663,1766203838613,-27591.04624507,0.0001245,2]
[399247665,1766203838622,-9999.99,0.0001245,2]
[399247667,1766203838631,-999.99,0.0001245,2]
[399247669,1766203838641,-1530.67,0.0001245,2]
[399247671,1766203838650,-9999.99,0.0001245,2]
[399247673,1766203838659,-150.99,0.0001245,2]
[399247675,1766203838669,-9999.99,0.0001245,2]
[399247677,1766203838678,-3805.42,0.0001245,2]
[399247679,1766203838687,-8658.59,0.0001245,2]
[399247681,1766203838696,-499.99,0.0001245,2]
[399247683,1766203838706,-9999.99,0.0001245,2]
[399247685,1766203838716,-9999.99,0.0001245,2]
[399247687,1766203838725,-4999.99,0.0001245,2]
[399247689,1766203838734,-41275.4,0.0001245,2]
[399247691,1766203838743,-299.99,0.0001245,2]
[399247693,1766203838756,-150.99,0.0001245,2]
[399247695,1766203838765,-67970.65,0.0001245,2]
[399247697,1766203838774,-500.0,0.00012543,2]
[399247699,1766203838783,-200.0,0.00012543,2]
[399247701,1766203838795,-500.0,0.00012543,2]
[399247703,1766203838804,-500.0,0.00012543,2]
[399247705,1766203838813,-500.0,0.00012543,2]
[399247707,1766203838823,-500.0,0.00012543,2]
[399247709,1766203838832,-500.0,0.00012543,2]
[399247711,1766203838841,-500.0,0.00012543,2]
[399247713,1766203838850,-500.0,0.00012543,2]
[399247715,1766203838860,-151.0,0.00012543,2]
[399247717,1766203838868,-500.0,0.00012543,2]
[399247719,1766203838877,-151.0,0.00012543,2]
[399247721,1766203838887,-500.0,0.00012543,2]
[399247723,1766203838896,-151.0,0.00012543,2]
[399247725,1766203838905,-500.0,0.00012543,2]
[399247726,1766203838913,-151.0,0.00012543,2]
[399247728,1766203838923,-500.0,0.00012543,2]
[399247730,1766203838933,-151.0,0.00012543,2]
[399247732,1766203838942,-151.0,0.00012543,2]
[399247734,1766203838951,-151.0,0.00012543,2]
[399247736,1766203838960,-151.0,0.00012543,2]
[399247737,1766203838970,-151.0,0.00012543,2]
[399247738,1766203838979,-500.0,0.00012543,2]
[399247739,1766203838988,-151.0,0.00012543,2]
[399247740,1766203838998,-500.0,0.00012543,2]
[399247741,1766203839008,-151.0,0.00012543,2]
[399247742,1766203839017,-500.0,0.00012543,2]
[399247743,1766203839026,-151.0,0.00012543,2]
[399247744,1766203839036,-500.0,0.00012543,2]
[399247745,1766203839045,-151.0,0.00012543,2]
[399247746,1766203839055,-500.0,0.00012543,2]
[399247747,1766203839065,-151.0,0.00012543,2]
[399247748,1766203839074,-500.0,0.00012543,2]
[399247749,1766203839083,-151.0,0.00012543,2]
[399247750,1766203839092,-500.0,0.00012543,2]
[399247751,1766203839101,-151.0,0.00012543,2]
[399247752,1766203839111,-500.0,0.00012543,2]
[399247753,1766203839120,-151.0,0.00012543,2]
[399247754,1766203839129,-151.0,0.00012543,2]
[399247755,1766203839138,-500.0,0.00012543,2]
[399247756,1766203839147,-151.0,0.00012543,2]
[399247757,1766203839157,-500.0,0.00012543,2]
[399247758,1766203839173,-151.0,0.00012543,2]
[399247759,1766203839186,-500.0,0.00012543,2]
[399247760,1766203839195,-200.0,0.00012543,2]
[399247761,1766203839205,-151.0,0.00012543,2]
[399247762,1766203839214,-151.0,0.00012543,2]
[399247763,1766203839224,-200.0,0.00012543,2]
[399247764,1766203839233,-151.0,0.00012543,2]
[399247765,1766203839242,-151.0,0.00012543,2]
[399247766,1766203839251,-151.0,0.00012543,2]
[399247767,1766203839261,-151.0,0.00012543,2]
[399247768,1766203839271,-151.0,0.00012543,2]
[399247769,1766203839280,-151.0,0.00012543,2]
[399247770,1766203839289,-151.0,0.00012543,2]
[399247771,1766203839299,-151.0,0.00012543,2]
[399247772,1766203839309,-151.0,0.00012543,2]
[399247773,1766203839318,-2049.65,0.00012543,2]
[399247774,1766203839327,-500.0,0.00012543,2]
[399247775,1766203839337,-452.8,0.00012697,2]
[399247776,1766203839346,-167.44206992,0.00012776,2]
[399247777,1766203839355,-714.06888544,0.00012805,2]
[399247778,1766203839364,-34045.73346549,0.00012808,2]
[399247779,1766203839373,-500.0,0.00012817,2]
[399247780,1766203839382,-2049.65,0.00012817,2]
[399247781,1766203839392,-150.0,0.00012861,2]
[399247782,1766203839401,-20015.917481,0.00013031,2]
[399247783,1766203839411,-500.0,0.00013091,2]
[399247784,1766203839421,-200.0,0.00013091,2]
[399247785,1766203839430,-200.0,0.00013091,2]
[399247786,1766203839439,-2049.65,0.00013091,2]
[399247787,1766203839448,-250.0,0.00013151,2]
[399247788,1766203839458,-250.0,0.00013151,2]
[399247789,1766203839467,-195.0,0.00013151,2]
[399247790,1766203839477,-195.0,0.00013151,2]
[399247791,1766203839487,-34045.73346549,0.00013319,2]
[399247793,1766203839496,-2049.65,0.00013365,2]
[399247794,1766203839505,-452.8,0.00013402,2]
[399247795,1766203839514,-255.0,0.00013436,2]
[399247797,1766203839524,-1600.0,0.00013449,2]
[399247798,1766203839533,-295.48,0.00013518,2]
[399247799,1766203839542,-160.47,0.00013523,2]
[399247800,1766203839551,-224.61,0.00013526,2]
[399247801,1766203839561,-500.0,0.00013639,2]
[399247802,1766203839571,-200.0,0.00013639,2]
[399247803,1766203839580,-200.0,0.00013639,2]
[399247804,1766203839589,-2049.65,0.00013639,2]
[399247805,1766203839599,-500.0,0.00013698,2]
[399247806,1766203839609,-500.0,0.00013698,2]
[399247807,1766203839620,-500.0,0.00013698,2]
[399247808,1766203839629,-500.0,0.00013698,2]
[399247809,1766203839639,-500.0,0.00013698,2]
[399247810,1766203839648,-500.0,0.00013698,2]
[399247811,1766203839658,-500.0,0.00013698,2]
[399247812,1766203839667,-500.0,0.00013698,2]
[399247813,1766203839676,-500.0,0.00013698,2]
[399247814,1766203839686,-502.93074974,0.00013698,2]
[399247815,1766203839695,-500.0,0.00013698,2]
[399247816,1766203839705,-500.0,0.00013698,2]
[399247817,1766203839719,-500.0,0.00013698,2]
[399247818,1766203839728,-500.0,0.00013698,2]
[399247819,1766203839737,-300.74913693,0.00013698,2]
[399247820,1766203839750,-300.95414794,0.00013698,2]
[399247821,1766203839760,-500.0,0.00013698,2]
[399247822,1766203839769,-500.0,0.00013698,2]
[399247823,1766203839779,-500.0,0.00013698,2]
[399247824,1766203839790,-500.0,0.00013698,2]
[399247825,1766203839799,-500.0,0.00013698,2]
[399247826,1766203839809,-500.0,0.00013698,2]
[399247827,1766203839818,-500.0,0.00013698,2]
[399247828,1766203839827,-500.0,0.00013698,2]
[399247829,1766203839837,-500.0,0.00013698,2]
[399247830,1766203839846,-500.0,0.00013698,2]
[399247831,1766203839856,-500.0,0.00013698,2]
[399247832,1766203839867,-500.0,0.00013698,2]
[399247833,1766203839878,-500.0,0.00013698,2]
[399247834,1766203839889,-500.0,0.00013698,2]
[399247835,1766203839900,-500.0,0.00013698,2]
[399247836,1766203839910,-500.0,0.00013698,2]
[399247837,1766203839919,-500.0,0.00013698,2]
[399247838,1766203839931,-500.0,0.00013698,2]
[399247839,1766203839940,-500.0,0.00013698,2]
[399247840,1766203839952,-500.0,0.00013698,2]
[399247841,1766203839962,-500.0,0.00013698,2]
[399247842,1766203839971,-500.0,0.00013698,2]
[399247843,1766203839981,-500.0,0.00013698,2]
[399247844,1766203839992,-500.0,0.00013698,2]
[399247845,1766203840005,-500.0,0.00013698,2]
[399247846,1766203840015,-500.0,0.00013698,2]
[399247847,1766203840025,-500.0,0.00013698,2]
[399247848,1766203840035,-500.0,0.00013698,2]
[399247849,1766203840045,-500.0,0.00013698,2]
[399247850,1766203840055,-500.0,0.00013698,2]
[399247851,1766203840067,-500.0,0.00013698,2]
[399247852,1766203840079,-500.0,0.00013698,2]
[399247853,1766203840090,-545.71710874,0.00013698,2]
[399247854,1766203840103,-500.0,0.00013698,2]
[399247855,1766203840112,-500.0,0.00013698,2]
[399247856,1766203840122,-500.0,0.00013698,2]
[399247857,1766203840131,-500.0,0.00013698,2]
[399247858,1766203840140,-500.0,0.00013698,2]
[399247859,1766203840149,-500.0,0.00013698,2]
[399247860,1766203840158,-500.0,0.00013698,2]
[399247861,1766203840168,-500.0,0.00013698,2]
[399247862,1766203840178,-500.0,0.00013698,2]
[399247863,1766203840187,-500.0,0.00013698,2]
[399247864,1766203840196,-500.0,0.00013698,2]
[399247865,1766203840206,-358.06023536,0.00013698,2]
[399247866,1766203840215,-500.0,0.00013698,2]
[399247867,1766203840225,-500.0,0.00013698,2]
[399247868,1766203840234,-500.0,0.00013698,2]
[399247869,1766203840243,-322.99177949,0.00013698,2]
[399247870,1766203840253,-500.0,0.00013698,2]
[399247871,1766203840263,-520.35217826,0.00013698,2]
[399247872,1766203840273,-500.0,0.00013698,2]
[399247873,1766203840283,-500.0,0.00013698,2]
[399247874,1766203840292,-500.0,0.00013698,2]
[399247875,1766203840301,-500.0,0.00013698,2]
[399247876,1766203840310,-500.0,0.00013698,2]
[399247877,1766203840321,-500.0,0.00013698,2]
[399247878,1766203840330,-500.0,0.00013698,2]
[399247879,1766203840339,-500.0,0.00013698,2]
[399247880,1766203840348,-500.0,0.00013698,2]
[399247881,1766203840358,-500.0,0.00013698,2]
[399247882,1766203840367,-500.0,0.00013698,2]
[399247883,1766203840376,-500.0,0.00013698,2]
[399247884,1766203840385,-500.0,0.00013698,2]
[399247885,1766203840394,-500.0,0.00013698,2]
[399247886,1766203840403,-500.0,0.00013698,2]
[399247887,1766203840412,-500.0,0.00013698,2]
[399247888,1766203840423,-500.0,0.00013698,2]
[399247889,1766203840432,-535.57922455,0.00013698,2]
[399247890,1766203840441,-500.0,0.00013698,2]
[399247891,1766203840450,-500.0,0.00013698,2]
[399247892,1766203840459,-500.0,0.00013698,2]
[399247893,1766203840469,-500.0,0.00013698,2]
[399247894,1766203840482,-500.0,0.00013698,2]
[399247895,1766203840491,-500.0,0.00013698,2]
[399247896,1766203840501,-500.0,0.00013698,2]
[399247897,1766203840510,-500.0,0.00013698,2]
[399247898,1766203840520,-500.0,0.00013698,2]
[399247899,1766203840529,-941.62,0.00013699,2]
[399247900,1766203840539,-707.69,0.00013699,2]
[399247901,1766203840548,-166.66,0.00013699,2]
[399247902,1766203840558,-445.92,0.00013699,2]
[399247903,1766203840568,-500.0,0.00013699,2]
[399247904,1766203840577,-500.0,0.00013699,2]
[399247905,1766203840586,-500.0,0.00013699,2]
[399247906,1766203840595,-500.0,0.00013699,2]
[399247907,1766203840605,-500.0,0.00013699,2]
[399247908,1766203840614,-500.0,0.00013699,2]
[399247909,1766203840624,-500.0,0.00013699,2]
[399247910,1766203840633,-500.0,0.00013699,2]
[399247911,1766203840642,-500.0,0.00013699,2]
[399247912,1766203840651,-357.49060572,0.00013699,2]
[399247913,1766203840661,-500.0,0.00013699,2]
[399247914,1766203840670,-500.0,0.00013699,2]
[399247915,1766203840680,-500.0,0.00013699,2]
[399247916,1766203840689,-500.0,0.00013699,2]
[399247917,1766203840698,-500.0,0.00013699,2]
[399247918,1766203840707,-500.0,0.00013699,2]
[399247919,1766203840717,-500.0,0.00013699,2]
[399247920,1766203840726,-500.0,0.00013699,2]
[399247921,1766203840736,-499.72722483,0.00013699,2]
[399247922,1766203840746,-500.0,0.00013699,2]
[399247923,1766203840758,-500.0,0.00013699,2]
[399247924,1766203840767,-500.0,0.00013699,2]
[399247925,1766203840777,-500.0,0.00013699,2]
[399247926,1766203840785,-500.0,0.00013699,2]
[399247927,1766203840796,-500.0,0.00013699,2]
[399247928,1766203840805,-500.0,0.00013699,2]
[399247929,1766203840814,-500.0,0.00013699,2]
[399247930,1766203840824,-500.0,0.00013699,2]
[399247931,1766203840833,-500.0,0.00013699,2]
[399247932,1766203840843,-500.0,0.00013772,2]
[399247933,1766203840853,-500.0,0.00013772,2]
[399247934,1766203840862,-500.0,0.00013772,2]
[399247935,1766203840872,-500.0,0.00013772,2]
[399247936,1766203840881,-500.0,0.00013772,2]
[399247937,1766203840890,-500.0,0.00013772,2]
[399247938,1766203840900,-500.0,0.00013772,2]
[399247939,1766203840909,-518.52076054,0.00013772,2]
[399247940,1766203840918,-500.0,0.00013772,2]
[399247941,1766203840928,-172.76817182,0.00013773,2]
[399247942,1766203840937,-165.53185787,0.00013773,2]
[399247943,1766203840946,-500.0,0.00013773,2]
[399247944,1766203840956,-163.10613259,0.00013773,2]
[399247945,1766203840966,-500.0,0.00013773,2]
[399247946,1766203840976,-500.0,0.00013773,2]
[399247947,1766203840985,-176.6683039,0.00013773,2]